lending/lending_fUSD_20250621
["ID","MTS","AMOUNT","RATE_DAILY","PERIOD"]
[366853321,1750516249188,-300.0,0.0002693,2]
[366853322,1750516249199,-168.0,0.0002695,2]
[366853323,1750516249211,-250.0,0.00027,2]
[366853324,1750516249221,-1004.69320446,0.00027,2]
[366853325,1750516249232,-10415.70446286,0.00027,2]
[366853326,1750516249242,-834.26476573,0.00027,10]
[366853327,1750516249254,-150.0,0.00027,120]
[366853328,1750516249264,-2000.0,0.00027,2]
[366853329,1750516249275,-4002.0,0.00027,3]
[366853330,1750516249286,-151.0,0.00027,7]
[366853331,1750516249297,-151.0,0.00027,7]
[366853332,1750516249308,-151.0,0.00027,7]
[366853333,1750516249319,-151.0,0.00027,7]
[366853334,1750516249330,-154.272003,0.00027,7]
[366853335,1750516249340,-400.0,0.00027,2]
[366853336,1750516249351,-569694.58317637,0.00027,2]
[366853337,1750516249361,-150.0,0.00027,2]
[366853338,1750516249372,-205.540129,0.00027,7]
[366853339,1750516249384,-151.0,0.00027,7]
[366853340,1750516249394,-288.448284,0.00027,7]
[366853341,1750516249405,-2244.625503,0.0002701,2]
[366853342,1750516249416,-3575.2,0.00027123,2]
[366853343,1750516249426,-373.22618801,0.00027129,2]
[366853344,1750516249440,-259.45463877,0.00027137,2]
[366853345,1750516249451,-168.0,0.00027196,2]
[366853346,1750516249461,-168.0,0.00027261,2]
[366853347,1750516249473,-151.0,0.00027282,2]
[366853348,1750516249483,-300.0,0.00027299,10]
[366853349,1750516249493,-300.0,0.00027299,10]
[366853350,1750516249504,-113406.35,0.000273,7]
[366853351,1750516249516,-156.099058,0.000273,7]
[366853352,1750516249526,-151.0,0.000273,7]
[366853353,1750516249536,-151.0,0.000273,7]
[366853354,1750516249547,-151.0,0.000273,7]
[366853355,1750516249556,-151.0,0.000273,7]
[366853356,1750516249567,-1834.323179,0.000273,7]
[366853357,1750516249577,-225.21464,0.000273,7]
[366853358,1750516249588,-225.21464,0.000273,7]
[366853359,1750516249598,-867.160274,0.000273,7]
[366853360,1750516249609,-867.160274,0.000273,7]
[366853361,1750516249619,-151.0,0.000273,7]
[366853362,1750516249629,-151.0,0.000273,7]
[366853363,1750516249639,-151.0,0.000273,7]
[366853364,1750516249649,-151.0,0.000273,7]
[366853365,1750516249659,-151.0,0.000273,7]
[366853366,1750516249670,-151.0,0.000273,7]
[366853367,1750516249680,-296.974154,0.000273,7]
[366853368,1750516249694,-151.0,0.000273,7]
[366853369,1750516249704,-151.0,0.000273,7]
[366853370,1750516249714,-250.461245,0.000273,7]
[366853371,1750516249725,-250.461245,0.000273,7]
[366853372,1750516249736,-151.0,0.000273,7]
[366853373,1750516249747,-151.0,0.000273,7]
[366853374,1750516249757,-151.0,0.000273,7]
[366853375,1750516249768,-151.0,0.000273,7]
[366853376,1750516249778,-544.562858,0.000273,7]
[366853377,1750516249788,-544.562858,0.000273,7]
[366853378,1750516249798,-732.500678,0.00027314,8]
[366853379,1750516249808,-2500.0,0.0002733,2]
[366853380,1750516249818,-233.94,0.00027367,120]
[366853381,1750516249829,-150.5,0.00027377,120]
[366853382,1750516249839,-810.75,0.00027381,120]
[366853383,1750516249849,-150.5,0.00027387,120]
[366853384,1750516249860,-1000.0,0.00027389,10]
[366853385,1750516249870,-1000.0,0.00027389,10]
[366853386,1750516249882,-1000.0,0.00027389,10]
[366853387,1750516249892,-1000.0,0.00027389,10]
[366853388,1750516249902,-1000.0,0.00027389,10]
[366853389,1750516249912,-1000.0,0.00027389,10]
[366853390,1750516249924,-1000.0,0.00027389,10]
[366853391,1750516249938,-1000.0,0.00027389,10]
[366853392,1750516249948,-1000.0,0.00027389,10]
[366853393,1750516249958,-1000.0,0.00027389,10]
[366853394,1750516249969,-638.0,0.0002739,2]
[366853395,1750516249979,-559.0,0.0002739,2]
[366853396,1750516249989,-928.0,0.0002739,2]
[366853397,1750516250001,-2005.0,0.0002739,2]
[366853398,1750516250011,-1676.0,0.0002739,2]
[366853399,1750516250021,-1161.0,0.0002739,2]
[366853400,1750516250031,-1000.0,0.00027396,2]
[366853401,1750516250041,-218.59756559,0.00027397,2]
[366853402,1750516250051,-300.0,0.00027397,2]
[366853403,1750516250061,-502.89,0.00027397,2]
[366853404,1750516250071,-150.0,0.00027397,2]
[366853405,1750516250081,-205.93,0.00027397,80]
[366853406,1750516250091,-7758.94,0.00027397,2]
[366853407,1750516250101,-87124.87,0.00027397,2]
[366853408,1750516250111,-512.0,0.00027397,20]
[366853409,1750516250120,-150.99,0.00027397,2]
[366853410,1750516250130,-15519.8,0.00027397,2]
[366853411,1750516250140,-500.0,0.000274,2]
[366853412,1750516250150,-1200.0,0.000274,2]
[366853413,1750516250160,-527.0,0.000274,2]
[366853414,1750516250170,-684.34005285,0.00027417,17]
[366853415,1750516250181,-196.47,0.00027429,2]
[366853416,1750516250192,-168.05619628,0.00027446,2]
[366853417,1750516250202,-453.0,0.0002747,120]
[366853418,1750516250212,-150.5,0.0002747,120]
[366853419,1750516250223,-150.0,0.0002747,2]
[366853420,1750516250233,-453.0,0.0002748,120]
[366853421,1750516250243,-150.5,0.0002748,120]
[366853422,1750516250253,-453.0,0.0002749,120]
[366853423,1750516250262,-150.5,0.0002749,120]
[366853424,1750516250272,-3947.84211834,0.000275,2]
[366853425,1750516250283,-7697.1310959,0.00027514,2]
[366853426,1750516250293,-168.3888056,0.00027653,2]
[366853427,1750516250303,-231.28369723,0.00027653,2]
[366853428,1750516250313,-500.0,0.00027658,30]
[366853429,1750516250324,-500.0,0.00027658,30]
[366853430,1750516250333,-501.66322896,0.00027658,30]
[366853431,1750516250343,-500.0,0.00027658,30]
[366853432,1750516250353,-500.0,0.00027658,30]
[366853433,1750516250363,-528.96364369,0.00027658,30]
[366853434,1750516250374,-338.51975065,0.00027658,30]
[366853435,1750516250384,-248.30834442,0.00027658,30]
[366853436,1750516250394,-500.0,0.00027658,30]
[366853437,1750516250404,-600.0,0.00027658,30]
[366853438,1750516250415,-500.0,0.00027658,30]
[366853439,1750516250425,-600.0,0.00027658,30]
[366853440,1750516250437,-600.0,0.00027658,30]
[366853441,1750516250447,-500.0,0.00027658,30]
[366853442,1750516250458,-600.0,0.00027658,30]
[366853443,1750516250468,-600.0,0.00027658,30]
[366853444,1750516250479,-600.0,0.00027658,30]
[366853445,1750516250489,-500.0,0.00027658,30]
[366853446,1750516250499,-600.0,0.00027658,30]
[366853447,1750516250510,-600.0,0.00027658,30]
[366853448,1750516250520,-600.0,0.00027658,30]
[366853449,1750516250530,-600.0,0.00027658,30]
[366853450,1750516250540,-600.0,0.00027658,30]
[366853451,1750516250550,-600.0,0.00027658,30]
[366853452,1750516250560,-600.0,0.00027658,30]
[366853453,1750516250570,-600.0,0.00027658,30]
[366853454,1750516250580,-162.7666287,0.00027658,30]
[366853455,1750516250590,-500.0,0.00027658,30]
[366853456,1750516250600,-500.0,0.00027658,30]
[366853457,1750516250610,-500.0,0.00027658,30]
[366853458,1750516250621,-500.0,0.00027658,30]
[366853459,1750516250631,-500.0,0.00027658,30]
[366853460,1750516250641,-500.0,0.00027658,30]
[366853461,1750516250651,-500.0,0.00027658,30]
[366853462,1750516250662,-500.0,0.00027658,30]
[366853463,1750516250672,-500.0,0.00027658,30]
[366853464,1750516250683,-500.0,0.00027658,30]
[366853465,1750516250693,-500.0,0.00027658,30]
[366853466,1750516250913,-500.0,0.00027658,30]
[366853467,1750516250945,-500.0,0.00027658,30]
[366853468,1750516250959,-500.0,0.00027658,30]
[366853469,1750516250969,-500.0,0.00027658,30]
[366853470,1750516250978,-500.0,0.00027658,30]
[366853471,1750516250988,-500.0,0.00027658,30]
[366853472,1750516250998,-500.0,0.00027658,30]
[366853473,1750516251007,-280.712738,0.00027658,7]
[366853474,1750516251017,-151.0,0.00027658,7]
[366853475,1750516251027,-151.0,0.00027658,7]
[366853476,1750516251036,-914.748671,0.00027658,7]
[366853477,1750516251046,-914.748671,0.00027658,7]
[366853478,1750516251056,-210.461369,0.00027658,7]
[366853479,1750516251066,-210.461369,0.00027658,7]
[366853480,1750516251076,-159.160129,0.00027658,7]
[366853481,1750516251085,-159.160129,0.00027658,7]
[366853482,1750516251096,-233.16,0.00027662,3]
[366853483,1750516251106,-202.0,0.00027693,16]
[366853484,1750516251115,-5025.88050473,0.000277,2]
[366853485,1750516251125,-340.0,0.000277,2]
[366853486,1750516251135,-151.0,0.000277,7]
[366853487,1750516251146,-176.690608,0.000277,7]
[366853488,1750516251156,-151.0,0.000277,7]
[366853489,1750516251166,-12294.28,0.000277,2]
[366853490,1750516251176,-163.72,0.0002776,2]
[366853491,1750516251188,-557.14607632,0.00027856,2]
[366853492,1750516251198,-461.43,0.00027867,2]
[366853493,1750516251208,-1006.16612482,0.00027878,5]
[366853494,1750516251218,-300.0,0.00027899,10]
[366853495,1750516251228,-300.0,0.00027899,10]
[366853496,1750516251237,-300.0,0.00027899,10]
[366853497,1750516251248,-539.33706711,0.00027899,10]
[366853498,1750516251258,-117028.25623283,0.000279,2]
[366853499,1750516251268,-285.626269,0.000279,7]
[366853500,1750516251278,-285.626269,0.000279,7]
[366853501,1750516251288,-225.209043,0.000279,7]
[366853502,1750516251295,-225.209043,0.000279,7]
[366853503,1750516251303,-151.0,0.000279,7]
[366853504,1750516251311,-151.0,0.000279,7]
[366853505,1750516251319,-233.842675,0.000279,7]
[366853506,1750516251326,-151.0,0.000279,7]
[366853507,1750516251335,-243.516087,0.000279,7]
[366853508,1750516251343,-243.516087,0.000279,7]
[366853509,1750516251351,-151.0,0.000279,7]
[366853510,1750516251359,-500.0,0.000279,2]
[366853511,1750516251367,-500.0,0.000279,2]
[366853512,1750516251375,-500.0,0.000279,2]
[366853513,1750516251383,-500.0,0.000279,2]
[366853514,1750516251391,-500.0,0.000279,2]
[366853515,1750516251400,-500.0,0.000279,2]
[366853516,1750516251408,-500.0,0.000279,2]
[366853517,1750516251416,-500.0,0.000279,2]
[366853518,1750516251424,-500.0,0.000279,2]
[366853519,1750516251433,-500.0,0.000279,2]
[366853520,1750516251441,-500.0,0.000279,2]
[366853521,1750516251451,-500.0,0.000279,2]
[366853522,1750516251461,-500.0,0.000279,2]
[366853523,1750516251470,-500.0,0.000279,2]
[366853524,1750516251480,-500.0,0.000279,2]
[366853525,1750516251490,-500.0,0.000279,2]
[366853526,1750516251501,-500.0,0.000279,2]
[366853527,1750516251510,-500.0,0.000279,2]
[366853528,1750516251520,-500.0,0.000279,2]
[366853529,1750516251529,-500.0,0.000279,2]
[366853530,1750516251539,-500.0,0.000279,2]
[366853531,1750516251550,-500.0,0.000279,2]
[366853532,1750516251560,-500.0,0.000279,2]
[366853533,1750516251570,-500.0,0.000279,2]
[366853534,1750516251580,-500.0,0.000279,2]
[366853535,1750516251590,-500.0,0.000279,2]
[366853536,1750516251600,-500.0,0.000279,2]
[366853537,1750516251609,-500.0,0.000279,2]
[366853538,1750516251619,-500.0,0.000279,2]
[366853539,1750516251629,-500.0,0.000279,2]
[366853540,1750516251638,-500.0,0.000279,2]
[366853541,1750516251648,-500.0,0.000279,2]
[366853542,1750516251658,-500.0,0.000279,2]
[366853543,1750516251669,-500.0,0.000279,2]
[366853544,1750516251678,-500.0,0.000279,2]
[366853545,1750516251688,-500.0,0.000279,2]
[366853546,1750516251698,-500.0,0.000279,2]
[366853547,1750516251707,-500.0,0.000279,2]
[366853548,1750516251718,-500.0,0.000279,2]
[366853549,1750516251728,-500.0,0.000279,2]
[366853550,1750516251737,-500.0,0.000279,2]
[366853551,1750516251747,-500.0,0.000279,2]
[366853552,1750516251757,-500.0,0.000279,2]
[366853553,1750516251767,-500.0,0.000279,2]
[366853554,1750516251777,-500.0,0.000279,2]
[366853555,1750516251787,-500.0,0.000279,2]
[366853556,1750516251797,-500.0,0.000279,2]
[366853557,1750516251807,-500.0,0.000279,2]
[366853558,1750516251817,-500.0,0.000279,2]
[366853559,1750516251826,-500.0,0.000279,2]
[366853560,1750516251836,-500.0,0.000279,2]
[366853561,1750516251846,-500.0,0.000279,2]
[366853562,1750516251855,-500.0,0.000279,2]
[366853563,1750516251865,-500.0,0.000279,2]
[366853564,1750516251875,-500.0,0.000279,2]
[366853565,1750516251884,-500.0,0.000279,2]
[366853566,1750516251893,-500.0,0.000279,2]
[366853567,1750516251904,-500.0,0.000279,2]
[366853568,1750516251913,-500.0,0.000279,2]
[366853569,1750516251927,-500.0,0.000279,2]
[366853570,1750516251936,-500.0,0.000279,2]
[366853571,1750516251946,-500.0,0.000279,2]
[366853572,1750516251955,-500.0,0.000279,2]
[366853573,1750516251966,-500.0,0.000279,2]
[366853574,1750516251975,-500.0,0.000279,2]
[366853575,1750516251984,-500.0,0.000279,2]
[366853576,1750516251995,-500.0,0.000279,2]
[366853577,1750516252004,-500.0,0.000279,2]
[366853578,1750516252013,-500.0,0.000279,2]
[366853579,1750516252023,-500.0,0.000279,2]
[366853580,1750516252033,-500.0,0.000279,2]
[366853581,1750516252043,-500.0,0.000279,2]
[366853582,1750516252052,-500.0,0.000279,2]
[366853583,1750516252062,-500.0,0.000279,2]
[366853584,1750516252071,-500.0,0.000279,2]
[366853585,1750516252081,-500.0,0.000279,2]
[366853586,1750516252091,-500.0,0.000279,2]
[366853587,1750516252100,-500.0,0.000279,2]
[366853588,1750516252110,-500.0,0.000279,2]
[366853589,1750516252121,-500.0,0.000279,2]
[366853590,1750516252130,-500.0,0.000279,2]
[366853591,1750516252141,-500.0,0.000279,2]
[366853592,1750516252151,-500.0,0.000279,2]
[366853593,1750516252162,-500.0,0.000279,2]
[366853594,1750516252171,-500.0,0.000279,2]
[366853595,1750516252182,-500.0,0.000279,2]
[366853596,1750516252192,-500.0,0.000279,2]
[366853597,1750516252203,-500.0,0.000279,2]
[366853598,1750516252213,-500.0,0.000279,2]
[366853599,1750516252223,-500.0,0.000279,2]
[366853600,1750516252234,-500.0,0.000279,2]
[366853601,1750516252244,-500.0,0.000279,2]
[366853602,1750516252254,-500.0,0.000279,2]
[366853603,1750516252264,-500.0,0.000279,2]
[366853604,1750516252274,-500.0,0.000279,2]
[366853605,1750516252284,-500.0,0.000279,2]
[366853606,1750516252294,-500.0,0.000279,2]
[366853607,1750516252304,-500.0,0.000279,2]
[366853608,1750516252314,-500.0,0.000279,2]
[366853609,1750516252324,-500.0,0.000279,2]
[366853610,1750516252334,-553.0,0.000279,2]
[366853611,1750516252344,-500.0,0.000279,2]
[366853612,1750516252354,-500.0,0.000279,2]
[366853613,1750516252364,-500.0,0.000279,2]
[366853614,1750516252374,-500.0,0.000279,2]
[366853615,1750516252384,-500.0,0.000279,2]
[366853616,1750516252394,-500.0,0.000279,2]
[366853617,1750516252404,-500.0,0.000279,2]
[366853618,1750516252414,-500.0,0.000279,2]
[366853619,1750516252423,-500.0,0.000279,2]
[366853620,1750516252434,-500.0,0.000279,2]
[366853621,1750516252444,-500.0,0.000279,2]
[366853622,1750516252454,-500.0,0.000279,2]
[366853623,1750516252464,-500.0,0.000279,2]
[366853624,1750516252474,-500.0,0.000279,2]
[366853625,1750516252484,-500.0,0.000279,2]
[366853626,1750516252495,-500.0,0.000279,2]
[366853627,1750516252505,-500.0,0.000279,2]
[366853628,1750516252516,-500.0,0.000279,2]
[366853629,1750516252525,-500.0,0.000279,2]
[366853630,1750516252534,-500.0,0.000279,2]
[366853631,1750516252544,-500.0,0.000279,2]
[366853632,1750516252554,-500.0,0.000279,2]
[366853633,1750516252564,-151.214652,0.000279,7]
[366853634,1750516252574,-500.0,0.000279,2]
[366853635,1750516252584,-500.0,0.000279,2]
[366853636,1750516252594,-500.0,0.000279,2]
[366853637,1750516252604,-500.0,0.000279,2]
[366853638,1750516252614,-500.0,0.000279,2]
[366853639,1750516252624,-500.0,0.000279,2]
[366853640,1750516252633,-500.0,0.000279,2]
[366853641,1750516252643,-500.0,0.000279,2]
[366853642,1750516252654,-500.0,0.000279,2]
[366853643,1750516252663,-500.0,0.000279,2]
[366853644,1750516252673,-500.0,0.000279,2]
[366853645,1750516252683,-500.0,0.000279,2]
[366853646,1750516252693,-500.0,0.000279,2]
[366853647,1750516252703,-500.0,0.000279,2]
[366853648,1750516252713,-500.0,0.000279,2]
[366853649,1750516252722,-500.0,0.000279,2]
[366853650,1750516252732,-500.0,0.000279,2]
[366853651,1750516252742,-500.0,0.000279,2]
[366853652,1750516252751,-779.074152,0.000279,7]
[366853653,1750516252761,-779.074152,0.000279,7]
[366853654,1750516252771,-1700.0,0.000279,10]
[366853655,1750516252780,-500.0,0.000279,2]
[366853656,1750516252790,-500.0,0.000279,2]
[366853657,1750516252800,-500.0,0.000279,2]
[366853658,1750516252809,-151.0,0.000279,7]
[366853659,1750516252819,-151.0,0.000279,7]
[366853660,1750516252829,-151.0,0.000279,7]
[366853661,1750516252839,-206.306235,0.000279,7]
[366853662,1750516252849,-13685.37341023,0.000279,2]
[366853663,1750516252859,-206.306235,0.000279,7]
[366853664,1750516252869,-13685.37341023,0.000279,2]
[366853665,1750516252879,-13685.37341023,0.000279,2]
[366853666,1750516252888,-13685.37341023,0.000279,2]
[366853667,1750516252898,-500.0,0.000279,2]
[366853668,1750516252908,-500.0,0.000279,2]
[366853669,1750516252918,-500.0,0.000279,2]
[366853670,1750516252930,-232.165969,0.000279,7]
[366853671,1750516252941,-500.0,0.000279,2]
[366853672,1750516252951,-500.0,0.000279,2]
[366853673,1750516252960,-500.0,0.000279,2]
[366853674,1750516252970,-500.0,0.000279,2]
[366853675,1750516252979,-500.0,0.000279,2]
[366853676,1750516252987,-500.0,0.000279,2]
[366853677,1750516252997,-500.0,0.000279,2]
[366853678,1750516253006,-500.0,0.000279,2]
[366853679,1750516253015,-500.0,0.000279,2]
[366853680,1750516253024,-500.0,0.000279,2]
[366853681,1750516253033,-500.0,0.000279,2]
[366853682,1750516253042,-500.0,0.000279,2]
[366853683,1750516253051,-500.0,0.000279,2]
[366853684,1750516253060,-328.122819,0.000279,7]
[366853685,1750516253070,-232.165969,0.000279,7]
[366853686,1750516253079,-328.122819,0.000279,7]
[366853687,1750516253088,-300.0,0.00027968,10]
[366853688,1750516253098,-300.0,0.00027968,10]
[366853689,1750516253108,-684.34005285,0.00027969,18]
[366853690,1750516253118,-300.0,0.00027972,10]
[366853691,1750516253127,-300.0,0.00027972,10]
[366853692,1750516253137,-300.0,0.00027972,10]
[366853693,1750516253147,-151.0,0.00027973,7]
[366853694,1750516253157,-150.0,0.00027986,2]
[366853695,1750516253166,-150.0,0.00027986,2]
[366853696,1750516253176,-285.87345,0.00027989,2]
[366853697,1750516253186,-300.0,0.00027991,10]
[366853698,1750516253195,-300.0,0.00027991,10]
[366853699,1750516253205,-300.0,0.00027991,10]
[366853700,1750516253214,-151.0,0.00027992,7]
[366853701,1750516253223,-151.0,0.00027992,7]
[366853702,1750516253233,-151.0,0.00027992,7]
[366853703,1750516253242,-151.0,0.00027992,7]
[366853704,1750516253252,-151.0,0.00027992,7]
[366853705,1750516253262,-459.673518,0.00027992,7]
[366853706,1750516253272,-459.673518,0.00027992,7]
[366853707,1750516253281,-300.0,0.00027999,10]
[366853708,1750516253291,-300.0,0.00027999,10]
[366853709,1750516253300,-300.0,0.00027999,10]
[366853710,1750516253309,-278.91,0.00028,2]
[366853711,1750516253319,-1422.35436999,0.00028,14]
[366853712,1750516253328,-50778.63014166,0.00028,2]
[366853713,1750516253337,-3000.0,0.00028,2]
[366853714,1750516253347,-3000.0,0.00028,2]
[366853715,1750516253357,-3000.0,0.00028,2]
[366853716,1750516253367,-3000.0,0.00028,2]
[366853717,1750516253376,-3000.0,0.00028,2]
[366853718,1750516253386,-1787.94,0.00028,2]
[366853719,1750516253395,-150.0,0.00028,120]
[366853720,1750516253405,-12600.98544108,0.00028,2]
[366853721,1750516253413,-252.01970883,0.00028,2]
[366853722,1750516253422,-237.193274,0.00028,7]
[366853723,1750516253430,-151.0,0.00028,7]
[366853724,1750516253439,-235.263581,0.00028,7]
[366853725,1750516253448,-151.0,0.00028,7]
[366853726,1750516253455,-260.93297127,0.00028,2]
[366853727,1750516253465,-151.0,0.00028,7]
[366853728,1750516253473,-151.0,0.00028,7]
[366853729,1750516253482,-151.0,0.00028,7]
[366853730,1750516253492,-151.0,0.00028,7]
[366853731,1750516253502,-151.0,0.00028,7]
[366853732,1750516253512,-151.0,0.00028,7]
[366853733,1750516253522,-273.847944,0.00028,7]
[366853734,1750516253531,-151.0,0.00028,7]
[366853735,1750516253542,-273.847944,0.00028,7]
[366853736,1750516253552,-151.0,0.00028,7]
[366853737,1750516253562,-151.0,0.00028,7]
[366853738,1750516253572,-151.0,0.00028,7]
[366853739,1750516253582,-151.0,0.00028,7]
[366853740,1750516253592,-151.0,0.00028,7]
[366853741,1750516253602,-151.0,0.00028,7]
[366853742,1750516253612,-151.0,0.00028,7]
[366853743,1750516253622,-151.0,0.00028,7]
[366853744,1750516253632,-2161.883809,0.00028,2]
[366853745,1750516253642,-151.0,0.00028,7]
[366853746,1750516253652,-300.0,0.00028077,10]
[366853747,1750516253662,-300.0,0.00028077,10]
[366853748,1750516253672,-150.0,0.00028118,2]
[366853749,1750516253683,-13685.37341023,0.00028144,2]
[366853750,1750516253693,-300.0,0.00028199,10]
[366853751,1750516253702,-300.0,0.00028199,10]
[366853752,1750516253712,-113406.35,0.000282,7]
[366853753,1750516253722,-270.940364,0.000282,7]
[366853754,1750516253733,-151.0,0.000282,7]
[366853755,1750516253743,-914.748671,0.000282,7]
[366853756,1750516253752,-914.748671,0.000282,7]
[366853757,1750516253762,-210.461369,0.000282,7]
[366853758,1750516253772,-210.461369,0.000282,7]
[366853759,1750516253782,-151.0,0.000282,7]
[366853760,1750516253791,-159.160129,0.000282,7]
[366853761,1750516253801,-159.160129,0.000282,7]
[366853762,1750516253810,-151.0,0.000282,7]
[366853763,1750516253820,-167.21979,0.000282,7]
[366853764,1750516253829,-167.21979,0.000282,7]
[366853765,1750516253839,-151.0,0.000282,7]
[366853766,1750516253848,-151.0,0.000282,7]
[366853767,1750516253858,-151.0,0.000282,7]
[366853768,1750516253869,-151.0,0.000282,7]
[366853769,1750516253878,-151.0,0.000282,7]
[366853770,1750516253888,-175.889165,0.000282,7]
[366853771,1750516253898,-250.461245,0.000282,7]
[366853772,1750516253908,-250.461245,0.000282,7]
[366853773,1750516253918,-151.0,0.000282,7]
[366853774,1750516253932,-162.734772,0.000282,7]
[366853775,1750516253941,-151.0,0.000282,7]
[366853776,1750516253951,-151.0,0.000282,7]
[366853777,1750516253960,-544.562858,0.000282,7]
[366853778,1750516253971,-544.562858,0.000282,7]
[366853779,1750516253981,-300.0,0.00028299,10]
[366853780,1750516253991,-867.83108252,0.000283,2]
[366853781,1750516254002,-113406.35,0.000283,7]
[366853782,1750516254012,-165.380302,0.000283,7]
[366853783,1750516254021,-151.0,0.000283,7]
[366853784,1750516254031,-151.0,0.000283,7]
[366853785,1750516254041,-151.0,0.000283,7]
[366853786,1750516254051,-1834.323179,0.000283,7]
[366853787,1750516254061,-1834.323179,0.000283,7]
[366853788,1750516254071,-225.21464,0.000283,7]
[366853789,1750516254081,-225.21464,0.000283,7]
[366853790,1750516254090,-867.160274,0.000283,7]
[366853791,1750516254100,-867.160274,0.000283,7]
[366853792,1750516254110,-151.0,0.000283,7]
[366853793,1750516254119,-3947.84211834,0.000283,2]
[366853794,1750516254130,-373.22618801,0.00028415,2]
[366853795,1750516254139,-13685.37341023,0.00028456,2]
[366853796,1750516254150,-1000.0,0.00028493,7]
[366853797,1750516254160,-1000.0,0.00028493,7]
[366853798,1750516254170,-1000.0,0.00028493,7]
[366853799,1750516254180,-843.46043222,0.00028493,7]
[366853800,1750516254191,-1500.0,0.000285,2]
[366853801,1750516254201,-684.34005285,0.00028521,19]
[366853802,1750516254211,-168.05619628,0.00028573,2]
[366853803,1750516254220,-340.0,0.000286,2]
[366853804,1750516254230,-151.0,0.00028606,3]
[366853805,1750516254240,-51148.55474462,0.0002876,2]
[366853806,1750516254250,-58777.27990243,0.0002876,2]
[366853807,1750516254260,-151.0,0.0002876,7]
[366853808,1750516254270,-151.0,0.0002876,7]
[366853809,1750516254280,-232.165969,0.0002876,7]
[366853810,1750516254289,-328.122819,0.0002876,7]
[366853811,1750516254299,-232.165969,0.0002876,7]
[366853812,1750516254309,-328.122819,0.0002876,7]
[366853813,1750516254319,-13685.37341023,0.00028767,2]
[366853814,1750516254329,-7758.94,0.00028767,2]
[366853815,1750516254339,-196.47,0.00028799,2]
[366853816,1750516254349,-344086.60413123,0.000288,2]
[366853817,1750516254359,-6010.8,0.000288,2]
[366853818,1750516254369,-6010.8,0.000288,2]
[366853819,1750516254378,-5346.06978618,0.000288,2]
[366853820,1750516254388,-151.0,0.000288,7]